[Event "*** Titled Tuesday Blitz"]
[Site "Chess.com"]
[Date "2020.11.24"]
[Round "11"]
[White "malakismayil"]
[Black "AsaHoffmann"]
[Result "0-1"]
[WhiteElo "2271"]
[BlackElo "2392"]
[TimeControl "180+1"]
[EndTime "12:22:20 PST"]
[Termination "AsaHoffmann won by resignation"]

1. e4 {[%clk 0:03:00.9]} 1... d6 {[%clk 0:02:55.4]} 2. d4 {[%clk 0:03:00.1]}
2... Nf6 {[%clk 0:02:54.8]} 3. Nc3 {[%clk 0:03:00.1]} 3... c6 {[%clk 0:02:54.5]}
4. g3 {[%clk 0:03:00.2]} 4... e5 {[%clk 0:02:52.7]} 5. dxe5 {[%clk 0:02:56.5]}
5... dxe5 {[%clk 0:02:52.4]} 6. Qxd8+ {[%clk 0:02:57]} 6... Kxd8 {[%clk
0:02:52.2]} 7. Bg2 {[%clk 0:02:57.9]} 7... Be6 {[%clk 0:02:51.7]} 8. Nge2 {[%clk
0:02:56.3]} 8... Kc7 {[%clk 0:02:51.2]} 9. Be3 {[%clk 0:02:53.4]} 9... Nbd7
{[%clk 0:02:50.6]} 10. h3 {[%clk 0:02:52.4]} 10... Bc5 {[%clk 0:02:49.9]} 11.
Bxc5 {[%clk 0:02:48.1]} 11... Nxc5 {[%clk 0:02:49.6]} 12. O-O-O {[%clk 0:02:49]}
12... a5 {[%clk 0:02:49.3]} 13. f4 {[%clk 0:02:40]} 13... Nfd7 {[%clk
0:02:46.9]} 14. f5 {[%clk 0:02:33.4]} 14... Bc4 {[%clk 0:02:46.2]} 15. b3 {[%clk
0:02:33.6]} 15... Bxe2 {[%clk 0:02:45.4]} 16. Nxe2 {[%clk 0:02:34.5]} 16... f6
{[%clk 0:02:43.8]} 17. Rd2 {[%clk 0:02:33.1]} 17... Nb6 {[%clk 0:02:42]} 18.
Rhd1 {[%clk 0:02:31.2]} 18... Rhd8 {[%clk 0:02:41.2]} 19. g4 {[%clk 0:02:26.9]}
19... Rxd2 {[%clk 0:02:37.5]} 20. Rxd2 {[%clk 0:02:25.9]} 20... a4 {[%clk
0:02:37]} 21. b4 {[%clk 0:02:24.6]} 21... Ncd7 {[%clk 0:02:32.7]} 22. h4 {[%clk
0:02:16.8]} 22... Nc4 {[%clk 0:02:31.2]} 23. Rd3 {[%clk 0:02:16.2]} 23... a3
{[%clk 0:02:29.8]} 24. g5 {[%clk 0:02:13.5]} 24... Ra4 {[%clk 0:02:27.7]} 25. c3
{[%clk 0:02:12.7]} 25... b5 {[%clk 0:02:24]} 26. Kc2 {[%clk 0:02:06.7]} 26... c5
{[%clk 0:02:23.6]} 27. Rd5 {[%clk 0:01:57.6]} 27... Kc6 {[%clk 0:02:22.4]} 28.
bxc5 {[%clk 0:01:50.6]} 28... Nxc5 {[%clk 0:02:22]} 29. Rd8 {[%clk 0:01:41.7]}
29... Ne3+ {[%clk 0:02:21.1]} 30. Kd2 {[%clk 0:01:40.5]} 30... Nxg2 {[%clk
0:02:20.3]} 31. Rg8 {[%clk 0:01:39.5]} 31... Nxe4+ {[%clk 0:02:18.3]} 32. Kd3
{[%clk 0:01:32.9]} 32... Nf4+ {[%clk 0:02:16.3]} 33. Nxf4 {[%clk 0:01:28.5]}
33... exf4 {[%clk 0:02:15.9]} 34. Rxg7 {[%clk 0:01:26.8]} 34... f3 {[%clk
0:02:15.7]} 35. Rxh7 {[%clk 0:01:17.7]} 35... fxg5 {[%clk 0:02:13.9]} 36. hxg5
{[%clk 0:01:14.5]} 36... Nxg5 {[%clk 0:02:13.2]} 37. Rh6+ {[%clk 0:01:14.5]}
37... Kd5 {[%clk 0:02:12]} 38. Rg6 {[%clk 0:01:07.8]} 38... f2 {[%clk
0:02:09.1]} 39. Ke2 {[%clk 0:01:06.5]} 39... Ne4 {[%clk 0:02:08.4]} 40. f6
{[%clk 0:01:04.4]} 40... Ke6 {[%clk 0:02:06.6]} 41. f7+ {[%clk 0:01:02.5]} 41...
Kxf7 {[%clk 0:02:06]} 42. Rc6 {[%clk 0:00:58.7]} 42... Rc4 {[%clk 0:02:04.3]}
43. Rxc4 {[%clk 0:00:57.4]} 43... bxc4 {[%clk 0:02:03.8]} 0-1

[Event "*** Titled Tuesday Blitz"]
[Site "Chess.com"]
[Date "2020.11.24"]
[Round "11"]
[White "Chess_Boxer123"]
[Black "Zarikovs1999"]
[Result "1-0"]
[WhiteElo "2522"]
[BlackElo "2387"]
[TimeControl "180+1"]
[EndTime "12:22:28 PST"]
[Termination "Chess_Boxer123 won by checkmate"]

1. f3 {[%clk 0:02:52.6]} 1... e5 {[%clk 0:02:58.2]} 2. g3 {[%clk 0:02:49.7]}
2... Nf6 {[%clk 0:02:58.3]} 3. Nh3 {[%clk 0:02:49.8]} 3... d5 {[%clk 0:02:59.2]}
4. Nf2 {[%clk 0:02:50]} 4... Bd6 {[%clk 0:02:59.8]} 5. Bg2 {[%clk 0:02:50.3]}
5... O-O {[%clk 0:03:00.2]} 6. O-O {[%clk 0:02:50.9]} 6... c5 {[%clk 0:03:00.6]}
7. e4 {[%clk 0:02:51.2]} 7... Nc6 {[%clk 0:02:59.2]} 8. d3 {[%clk 0:02:51.5]}
8... Be6 {[%clk 0:02:58.1]} 9. a4 {[%clk 0:02:51.4]} 9... d4 {[%clk 0:02:53.8]}
10. Na3 {[%clk 0:02:51.7]} 10... Nd7 {[%clk 0:02:53]} 11. b3 {[%clk 0:02:51.6]}
11... f5 {[%clk 0:02:52.3]} 12. exf5 {[%clk 0:02:50.4]} 12... Bxf5 {[%clk
0:02:52.3]} 13. Nc4 {[%clk 0:02:50.8]} 13... Bc7 {[%clk 0:02:52.4]} 14. Ne4
{[%clk 0:02:51.3]} 14... a6 {[%clk 0:02:46.7]} 15. Bd2 {[%clk 0:02:49.9]} 15...
Nf6 {[%clk 0:02:34.8]} 16. Nxc5 {[%clk 0:02:44.2]} 16... b6 {[%clk 0:02:16.6]}
17. Ne4 {[%clk 0:02:42.4]} 17... Nd5 {[%clk 0:02:16.8]} 18. f4 {[%clk
0:02:24.8]} 18... exf4 {[%clk 0:02:04.5]} 19. Qh5 {[%clk 0:02:23.2]} 19... g6
{[%clk 0:01:57.9]} 20. Qh6 {[%clk 0:02:17.3]} 20... Qd7 {[%clk 0:01:07.8]} 21.
Ng5 {[%clk 0:02:09.2]} 21... Nf6 {[%clk 0:01:00.3]} 22. Bxf4 {[%clk 0:02:08.6]}
22... Bxf4 {[%clk 0:00:58.9]} 23. Rxf4 {[%clk 0:02:08]} 23... Rae8 {[%clk
0:00:55.3]} 24. Raf1 {[%clk 0:02:04.5]} 24... Ng4 {[%clk 0:00:52]} 25. Rxg4
{[%clk 0:01:49.9]} 25... Bxg4 {[%clk 0:00:50.6]} 26. Bd5+ {[%clk 0:01:48.4]}
26... Be6 {[%clk 0:00:31.6]} 27. Bxe6+ {[%clk 0:01:45.1]} 27... Rxe6 {[%clk
0:00:31.8]} 28. Rxf8# {[%clk 0:01:42.7]} 1-0

[Event "*** Titled Tuesday Blitz"]
[Site "Chess.com"]
[Date "2020.11.24"]
[Round "11"]
[White "Chessbard1972"]
[Black "Michaelson_11"]
[Result "1-0"]
[WhiteElo "2322"]
[BlackElo "2149"]
[TimeControl "180+1"]
[EndTime "12:22:28 PST"]
[Termination "Chessbard1972 won by resignation"]

1. e4 {[%clk 0:03:00.9]} 1... c5 {[%clk 0:02:59.4]} 2. d4 {[%clk 0:02:58.2]}
2... cxd4 {[%clk 0:02:57.8]} 3. c3 {[%clk 0:02:56.8]} 3... dxc3 {[%clk
0:02:56.5]} 4. Nxc3 {[%clk 0:02:55.7]} 4... Nc6 {[%clk 0:02:54.1]} 5. Bc4 {[%clk
0:02:50.5]} 5... e6 {[%clk 0:02:53.7]} 6. Bf4 {[%clk 0:02:49.4]} 6... a6 {[%clk
0:02:51.2]} 7. a4 {[%clk 0:02:48.2]} 7... Nge7 {[%clk 0:02:37]} 8. Bd6 {[%clk
0:02:45.3]} 8... Ng6 {[%clk 0:02:28.4]} 9. Bxf8 {[%clk 0:02:44.8]} 9... Kxf8
{[%clk 0:02:21.5]} 10. Nf3 {[%clk 0:02:43.1]} 10... Qe7 {[%clk 0:02:09.8]} 11.
O-O {[%clk 0:02:40.2]} 11... Nge5 {[%clk 0:02:05.2]} 12. Ba2 {[%clk 0:02:37.2]}
12... f6 {[%clk 0:01:38]} 13. Nxe5 {[%clk 0:02:35.5]} 13... Nxe5 {[%clk
0:01:37.6]} 14. f4 {[%clk 0:02:34.1]} 14... Nc6 {[%clk 0:01:37]} 15. f5 {[%clk
0:02:30.8]} 15... Kf7 {[%clk 0:01:28.9]} 16. Qh5+ {[%clk 0:02:23.8]} 16... Kf8
{[%clk 0:01:20.1]} 17. e5 {[%clk 0:02:18]} 17... Nxe5 {[%clk 0:01:15.1]} 18.
fxe6 {[%clk 0:02:17.3]} 18... Qc5+ {[%clk 0:01:14.8]} 19. Kh1 {[%clk 0:02:16.3]}
19... dxe6 {[%clk 0:01:14.9]} 20. Ne4 {[%clk 0:02:12.3]} 20... Qc7 {[%clk
0:01:02.8]} 21. Rac1 {[%clk 0:02:10.2]} 21... Qa5 {[%clk 0:00:53.5]} 22. b4
{[%clk 0:01:49.2]} 22... Qxa4 {[%clk 0:00:45.2]} 23. Qxe5 {[%clk 0:01:46.7]}
23... Qxb4 {[%clk 0:00:35.1]} 24. Nxf6 {[%clk 0:01:39.7]} 24... gxf6 {[%clk
0:00:33]} 25. Qxf6+ {[%clk 0:01:39.3]} 1-0

[Event "*** Titled Tuesday Blitz"]
[Site "Chess.com"]
[Date "2020.11.24"]
[Round "11"]
[White "Morshynska"]
[Black "03revilo"]
[Result "1-0"]
[WhiteElo "2246"]
[BlackElo "2292"]
[TimeControl "180+1"]
[EndTime "12:22:29 PST"]
[Termination "Morshynska won by resignation"]

1. Nf3 {[%clk 0:03:00.9]} 1... d5 {[%clk 0:02:57.2]} 2. g3 {[%clk 0:03:01.4]}
2... Nf6 {[%clk 0:02:56.7]} 3. Bg2 {[%clk 0:03:01.7]} 3... e6 {[%clk 0:02:57.3]}
4. O-O {[%clk 0:03:02.1]} 4... Be7 {[%clk 0:02:57.8]} 5. c4 {[%clk 0:03:02.1]}
5... O-O {[%clk 0:02:58.4]} 6. d4 {[%clk 0:03:02.3]} 6... dxc4 {[%clk
0:02:58.8]} 7. Qc2 {[%clk 0:03:01.8]} 7... a6 {[%clk 0:02:58.8]} 8. Qxc4 {[%clk
0:03:01.8]} 8... b5 {[%clk 0:02:59]} 9. Qc2 {[%clk 0:03:01.7]} 9... Bb7 {[%clk
0:02:59.4]} 10. a4 {[%clk 0:02:57.3]} 10... Nbd7 {[%clk 0:02:54.7]} 11. Rd1
{[%clk 0:02:45.8]} 11... c5 {[%clk 0:02:46.9]} 12. dxc5 {[%clk 0:02:44.7]} 12...
Bxc5 {[%clk 0:02:47.8]} 13. Nbd2 {[%clk 0:01:53.8]} 13... Qb6 {[%clk 0:02:38.1]}
14. e3 {[%clk 0:01:42.4]} 14... Rac8 {[%clk 0:02:32.1]} 15. Qd3 {[%clk
0:01:15.6]} 15... Rfd8 {[%clk 0:02:28.4]} 16. a5 {[%clk 0:01:07.5]} 16... Qc7
{[%clk 0:02:22.8]} 17. Qe2 {[%clk 0:01:07]} 17... Ne5 {[%clk 0:02:17]} 18. Nxe5
{[%clk 0:01:02.3]} 18... Bxg2 {[%clk 0:02:17.9]} 19. Nxf7 {[%clk 0:00:50.1]}
19... Rxd2 {[%clk 0:02:14.8]} 20. Bxd2 {[%clk 0:00:39.8]} 20... Qb7 {[%clk
0:02:11.3]} 21. Ne5 {[%clk 0:00:31.7]} 21... Bd6 {[%clk 0:02:11.7]} 22. f3
{[%clk 0:00:29.3]} 22... Bh3 {[%clk 0:01:55.3]} 23. Bc3 {[%clk 0:00:28.3]} 23...
Rxc3 {[%clk 0:01:51.8]} 24. Rxd6 {[%clk 0:00:23.2]} 24... Rc5 {[%clk 0:01:46.4]}
25. Rd8+ {[%clk 0:00:22.2]} 1-0

[Event "*** Titled Tuesday Blitz"]
[Site "Chess.com"]
[Date "2020.11.24"]
[Round "11"]
[White "beautroll"]
[Black "dosto07"]
[Result "1-0"]
[WhiteElo "2431"]
[BlackElo "2315"]
[TimeControl "180+1"]
[EndTime "12:22:31 PST"]
[Termination "beautroll won by resignation"]

1. e4 {[%clk 0:03:00.9]} 1... e5 {[%clk 0:02:58.2]} 2. Nf3 {[%clk 0:03:00.8]}
2... Nc6 {[%clk 0:02:57.3]} 3. Bc4 {[%clk 0:03:01.2]} 3... Bc5 {[%clk
0:02:56.1]} 4. c3 {[%clk 0:03:01.1]} 4... d6 {[%clk 0:02:55.4]} 5. d4 {[%clk
0:02:57.9]} 5... exd4 {[%clk 0:02:56.3]} 6. cxd4 {[%clk 0:02:57.9]} 6... Bb6
{[%clk 0:02:56.9]} 7. Nc3 {[%clk 0:02:51.9]} 7... Nf6 {[%clk 0:02:56.3]} 8. O-O
{[%clk 0:02:51.1]} 8... O-O {[%clk 0:02:54]} 9. h3 {[%clk 0:02:51.2]} 9... Nxe4
{[%clk 0:02:52.7]} 10. Bxf7+ {[%clk 0:02:46.2]} 10... Rxf7 {[%clk 0:02:51.4]}
11. Nxe4 {[%clk 0:02:46.8]} 11... h6 {[%clk 0:02:49.4]} 12. d5 {[%clk
0:02:42.9]} 12... Ne5 {[%clk 0:02:48.5]} 13. Nxe5 {[%clk 0:02:41.5]} 13... dxe5
{[%clk 0:02:48.3]} 14. Qb3 {[%clk 0:02:20]} 14... Bf5 {[%clk 0:02:31]} 15. Ng3
{[%clk 0:02:16.4]} 15... Bg6 {[%clk 0:02:30.2]} 16. Be3 {[%clk 0:02:13.7]} 16...
Kh8 {[%clk 0:02:26.9]} 17. Rad1 {[%clk 0:02:11.5]} 17... Rd7 {[%clk 0:02:23.8]}
18. Rd2 {[%clk 0:02:01.4]} 18... Bf7 {[%clk 0:02:22.2]} 19. Rfd1 {[%clk
0:01:59.9]} 19... c6 {[%clk 0:02:20]} 20. Qc3 {[%clk 0:01:47.9]} 20... Bxe3
{[%clk 0:02:17.8]} 21. fxe3 {[%clk 0:01:48.8]} 21... Rxd5 {[%clk 0:02:06]} 22.
Rxd5 {[%clk 0:01:47.3]} 22... Bxd5 {[%clk 0:02:06.4]} 23. e4 {[%clk 0:01:36.2]}
23... Qb6+ {[%clk 0:02:05.3]} 24. Kh2 {[%clk 0:01:35.9]} 24... Bxa2 {[%clk
0:01:56.1]} 25. Qxe5 {[%clk 0:01:35.5]} 25... Rd8 {[%clk 0:01:46.3]} 26. Nf5
{[%clk 0:01:28.1]} 26... Rg8 {[%clk 0:01:43]} 27. Nxh6 {[%clk 0:01:19.2]} 27...
Rc8 {[%clk 0:01:09.4]} 28. Rd7 {[%clk 0:01:14.7]} 1-0

[Event "*** Titled Tuesday Blitz"]
[Site "Chess.com"]
[Date "2020.11.24"]
[Round "11"]
[White "GMJustin"]
[Black "Bastiandash"]
[Result "1-0"]
[WhiteElo "2301"]
[BlackElo "2397"]
[TimeControl "180+1"]
[EndTime "12:22:41 PST"]
[Termination "GMJustin won by resignation"]

1. d4 {[%clk 0:02:55.3]} 1... Nf6 {[%clk 0:02:59]} 2. c4 {[%clk 0:02:54.3]} 2...
e6 {[%clk 0:02:59.5]} 3. Nc3 {[%clk 0:02:53.2]} 3... Bb4 {[%clk 0:02:59.9]} 4.
Bd2 {[%clk 0:02:49]} 4... O-O {[%clk 0:02:57.1]} 5. Nf3 {[%clk 0:02:47.8]} 5...
b6 {[%clk 0:02:56.5]} 6. e3 {[%clk 0:02:38.5]} 6... Bb7 {[%clk 0:02:55.7]} 7.
Bd3 {[%clk 0:02:36.3]} 7... Bxc3 {[%clk 0:02:54]} 8. Bxc3 {[%clk 0:02:36]} 8...
Ne4 {[%clk 0:02:54.6]} 9. Qc2 {[%clk 0:02:29.1]} 9... f5 {[%clk 0:02:53.7]} 10.
d5 {[%clk 0:01:40.3]} 10... Nc5 {[%clk 0:02:35.8]} 11. O-O-O {[%clk 0:01:22.3]}
11... Qe7 {[%clk 0:02:28.7]} 12. Kb1 {[%clk 0:01:16.5]} 12... d6 {[%clk
0:02:21.1]} 13. Nd4 {[%clk 0:00:54.4]} 13... Nxd3 {[%clk 0:02:08]} 14. Qxd3
{[%clk 0:00:53.6]} 14... exd5 {[%clk 0:02:08.6]} 15. Nxf5 {[%clk 0:00:50.2]}
15... Rxf5 {[%clk 0:01:53.6]} 16. Qxf5 {[%clk 0:00:49.3]} 16... dxc4 {[%clk
0:01:54.5]} 17. f3 {[%clk 0:00:42.5]} 17... Nd7 {[%clk 0:01:52.4]} 18. e4 {[%clk
0:00:39.2]} 18... Rf8 {[%clk 0:01:50.3]} 19. Qg4 {[%clk 0:00:37]} 19... Nc5
{[%clk 0:01:49]} 20. e5 {[%clk 0:00:29]} 20... Nd3 {[%clk 0:01:33.3]} 21. exd6
{[%clk 0:00:24.8]} 21... cxd6 {[%clk 0:01:34.2]} 22. Qxc4+ {[%clk 0:00:22.7]}
1-0

[Event "*** Titled Tuesday Blitz"]
[Site "Chess.com"]
[Date "2020.11.24"]
[Round "11"]
[White "monalize"]
[Black "enriquetejedor"]
[Result "1-0"]
[WhiteElo "2367"]
[BlackElo "2457"]
[TimeControl "180+1"]
[EndTime "12:23:23 PST"]
[Termination "monalize won by checkmate"]

1. e4 {[%clk 0:03:00.9]} 1... c6 {[%clk 0:02:24.9]} 2. Nc3 {[%clk 0:02:58.6]}
2... b5 {[%clk 0:02:24.3]} 3. d4 {[%clk 0:02:54.9]} 3... d5 {[%clk 0:02:22.7]}
4. a3 {[%clk 0:02:24.2]} 4... g6 {[%clk 0:02:20.8]} 5. Be3 {[%clk 0:02:19.8]}
5... a6 {[%clk 0:02:18.4]} 6. Qd2 {[%clk 0:02:17.6]} 6... h5 {[%clk 0:02:16.4]}
7. f3 {[%clk 0:02:17.3]} 7... Bg7 {[%clk 0:02:07.7]} 8. Bd3 {[%clk 0:02:15.2]}
8... e5 {[%clk 0:02:06.5]} 9. Nge2 {[%clk 0:02:10.4]} 9... c5 {[%clk 0:02:06.6]}
10. Nxd5 {[%clk 0:02:05.7]} 10... c4 {[%clk 0:02:04]} 11. Bxc4 {[%clk
0:02:02.9]} 11... bxc4 {[%clk 0:02:03.7]} 12. Qb4 {[%clk 0:02:02.7]} 12... Nc6
{[%clk 0:02:00.3]} 13. Qxc4 {[%clk 0:01:58.8]} 13... Bd7 {[%clk 0:01:56.8]} 14.
dxe5 {[%clk 0:01:55.8]} 14... Bxe5 {[%clk 0:01:55.1]} 15. Nec3 {[%clk
0:01:53.4]} 15... Nf6 {[%clk 0:01:54.7]} 16. Bc5 {[%clk 0:01:52.5]} 16... Nxd5
{[%clk 0:01:54]} 17. exd5 {[%clk 0:01:49.2]} 17... Nd4 {[%clk 0:01:51.9]} 18.
O-O-O {[%clk 0:01:46.8]} 18... Nf5 {[%clk 0:01:23.7]} 19. Rhe1 {[%clk
0:01:45.1]} 19... Qg5+ {[%clk 0:00:58.9]} 20. f4 {[%clk 0:01:42.6]} 20... Qf6
{[%clk 0:00:02.8]} 21. Rxe5+ {[%clk 0:01:38.1]} 21... Kd8 {[%clk 0:00:02.7]} 22.
Qb4 {[%clk 0:01:32.8]} 22... Bb5 {[%clk 0:00:01.6]} 23. Qa5+ {[%clk 0:01:26.7]}
23... Kc8 {[%clk 0:00:01.4]} 24. Nxb5 {[%clk 0:01:26.1]} 24... Ra7 {[%clk
0:00:01.2]} 25. Nxa7+ {[%clk 0:01:25.2]} 25... Kb7 {[%clk 0:00:01.4]} 26. Rd3
{[%clk 0:01:22.3]} 26... Rd8 {[%clk 0:00:01.5]} 27. Rb3+ {[%clk 0:01:20.2]}
27... Ka8 {[%clk 0:00:02]} 28. Nc6 {[%clk 0:01:19.2]} 28... Rc8 {[%clk
0:00:01.8]} 29. Qxa6# {[%clk 0:01:18.4]} 1-0

[Event "*** Titled Tuesday Blitz"]
[Site "Chess.com"]
[Date "2020.11.24"]
[Round "11"]
[White "SanchezKelvin"]
[Black "FMJoseHerrera"]
[Result "1-0"]
[WhiteElo "2474"]
[BlackElo "2573"]
[TimeControl "180+1"]
[EndTime "12:23:27 PST"]
[Termination "SanchezKelvin won by resignation"]

1. d4 {[%clk 0:03:00.9]} 1... Nf6 {[%clk 0:02:59.3]} 2. c4 {[%clk 0:03:00.4]}
2... c5 {[%clk 0:02:58.9]} 3. Nf3 {[%clk 0:03:00]} 3... g6 {[%clk 0:02:58.7]} 4.
Nc3 {[%clk 0:02:59.4]} 4... Bg7 {[%clk 0:02:59.1]} 5. d5 {[%clk 0:02:59.7]} 5...
O-O {[%clk 0:02:58.9]} 6. e4 {[%clk 0:02:59.2]} 6... b5 {[%clk 0:02:59.5]} 7.
cxb5 {[%clk 0:02:58.6]} 7... a6 {[%clk 0:02:59.5]} 8. e5 {[%clk 0:02:58.9]} 8...
Ng4 {[%clk 0:02:59.4]} 9. Bf4 {[%clk 0:02:50.4]} 9... d6 {[%clk 0:02:59.6]} 10.
e6 {[%clk 0:02:49.5]} 10... fxe6 {[%clk 0:02:50.7]} 11. Bg3 {[%clk 0:02:48.6]}
11... e5 {[%clk 0:02:49.8]} 12. bxa6 {[%clk 0:02:45.1]} 12... Qa5 {[%clk
0:02:48.6]} 13. Nd2 {[%clk 0:02:40.7]} 13... Bxa6 {[%clk 0:02:41.7]} 14. Qxg4
{[%clk 0:02:37.9]} 14... Bxf1 {[%clk 0:02:26.6]} 15. Kxf1 {[%clk 0:02:28.8]}
15... Na6 {[%clk 0:02:24.6]} 16. h4 {[%clk 0:02:27.3]} 16... Qb4 {[%clk
0:01:59.7]} 17. Qxb4 {[%clk 0:02:22.9]} 17... Nxb4 {[%clk 0:02:00.6]} 18. Nde4
{[%clk 0:02:20]} 18... Nd3 {[%clk 0:01:57.9]} 19. b3 {[%clk 0:02:10.3]} 19...
Rfb8 {[%clk 0:01:56.6]} 20. Ke2 {[%clk 0:01:52.3]} 20... Nb4 {[%clk 0:01:56.6]}
21. h5 {[%clk 0:01:44.2]} 21... Nc2 {[%clk 0:01:54.2]} 22. Rac1 {[%clk 0:01:43]}
22... Nd4+ {[%clk 0:01:55.1]} 23. Kd3 {[%clk 0:01:39.8]} 23... g5 {[%clk
0:01:51.6]} 24. h6 {[%clk 0:01:39.7]} 24... Bf6 {[%clk 0:01:51.3]} 25. Rh5
{[%clk 0:01:20]} 25... g4 {[%clk 0:01:46.6]} 26. Bh4 {[%clk 0:01:16.6]} 26...
Kf7 {[%clk 0:01:45.3]} 27. Bxf6 {[%clk 0:01:12.4]} 27... exf6 {[%clk 0:01:44.1]}
28. Nxd6+ {[%clk 0:01:12.5]} 28... Kg6 {[%clk 0:01:44.8]} 29. Rhh1 {[%clk
0:01:11.6]} 29... f5 {[%clk 0:01:45]} 30. Nc4 {[%clk 0:01:11]} 30... e4+ {[%clk
0:01:42.9]} 31. Ke3 {[%clk 0:01:08.1]} 31... Kg5 {[%clk 0:01:14.6]} 32. g3
{[%clk 0:01:08]} 32... Rd8 {[%clk 0:01:08.2]} 33. d6 {[%clk 0:01:06.6]} 33...
Nf3 {[%clk 0:01:04]} 34. Rcd1 {[%clk 0:01:05.1]} 34... Rd7 {[%clk 0:00:59.3]}
35. Rd5 {[%clk 0:00:59.6]} 35... Kg6 {[%clk 0:00:54.3]} 36. Nb6 {[%clk
0:00:56.3]} 36... Rad8 {[%clk 0:00:45.4]} 37. Nxd7 {[%clk 0:00:56.1]} 37... Rxd7
{[%clk 0:00:46.3]} 38. Rhd1 {[%clk 0:00:54.9]} 38... Kxh6 {[%clk 0:00:45.2]} 1-0

[Event "*** Titled Tuesday Blitz"]
[Site "Chess.com"]
[Date "2020.11.24"]
[Round "11"]
[White "2346PL"]
[Black "GelmanAlexander"]
[Result "1-0"]
[WhiteElo "2463"]
[BlackElo "2573"]
[TimeControl "180+1"]
[EndTime "12:23:27 PST"]
[Termination "2346PL won on time"]

1. d4 {[%clk 0:03:00.9]} 1... Nf6 {[%clk 0:02:59.6]} 2. Nc3 {[%clk 0:03:01.5]}
2... c5 {[%clk 0:02:57.8]} 3. d5 {[%clk 0:02:58]} 3... d6 {[%clk 0:02:57.6]} 4.
Bg5 {[%clk 0:02:55.7]} 4... Nbd7 {[%clk 0:02:55.6]} 5. e4 {[%clk 0:02:54.8]}
5... h6 {[%clk 0:02:53.9]} 6. Bxf6 {[%clk 0:02:54]} 6... Nxf6 {[%clk 0:02:52.8]}
7. f4 {[%clk 0:02:54]} 7... g5 {[%clk 0:02:48]} 8. e5 {[%clk 0:02:52.5]} 8...
Nh7 {[%clk 0:02:02.3]} 9. e6 {[%clk 0:02:15.8]} 9... Qb6 {[%clk 0:01:49.9]} 10.
Bb5+ {[%clk 0:02:09.8]} 10... Kd8 {[%clk 0:01:50]} 11. exf7 {[%clk 0:02:08.3]}
11... a6 {[%clk 0:01:46.9]} 12. Bd3 {[%clk 0:01:56.3]} 12... Qxb2 {[%clk
0:01:43.4]} 13. Nge2 {[%clk 0:01:54.8]} 13... Bg7 {[%clk 0:01:32.1]} 14. O-O
{[%clk 0:01:40.9]} 14... Bxc3 {[%clk 0:01:31.1]} 15. Rb1 {[%clk 0:01:41.3]}
15... Bd4+ {[%clk 0:01:27.7]} 16. Kh1 {[%clk 0:01:40.7]} 16... Qxa2 {[%clk
0:01:17.6]} 17. Nxd4 {[%clk 0:01:36]} 17... cxd4 {[%clk 0:01:16.6]} 18. Bxh7
{[%clk 0:01:36.1]} 18... Qxd5 {[%clk 0:00:49.2]} 19. Bg8 {[%clk 0:01:35.5]}
19... Rxg8 {[%clk 0:00:45]} 20. fxg8=Q+ {[%clk 0:01:29.8]} 20... Qxg8 {[%clk
0:00:45.9]} 21. Qxd4 {[%clk 0:01:26.4]} 21... gxf4 {[%clk 0:00:42.3]} 22. Rxf4
{[%clk 0:01:23.2]} 22... b5 {[%clk 0:00:38.7]} 23. Rbf1 {[%clk 0:01:18]} 23...
Qg5 {[%clk 0:00:24.6]} 24. Qe4 {[%clk 0:01:07.8]} 24... Ra7 {[%clk 0:00:20.6]}
25. Qc6 {[%clk 0:01:05.5]} 1-0

[Event "*** Titled Tuesday Blitz"]
[Site "Chess.com"]
[Date "2020.11.24"]
[Round "11"]
[White "HackingKid98"]
[Black "WiktoriaPOL"]
[Result "1-0"]
[WhiteElo "2322"]
[BlackElo "2099"]
[TimeControl "180+1"]
[EndTime "12:23:34 PST"]
[Termination "HackingKid98 won by checkmate"]

1. d4 {[%clk 0:03:00.4]} 1... Nf6 {[%clk 0:02:59.4]} 2. c4 {[%clk 0:02:59.5]}
2... g6 {[%clk 0:02:59.5]} 3. g3 {[%clk 0:02:55.8]} 3... Bg7 {[%clk 0:02:59.5]}
4. Bg2 {[%clk 0:02:49.2]} 4... O-O {[%clk 0:02:59.1]} 5. Nf3 {[%clk 0:02:49.1]}
5... d6 {[%clk 0:02:59]} 6. O-O {[%clk 0:02:48.8]} 6... Nc6 {[%clk 0:02:54.9]}
7. Nc3 {[%clk 0:02:48.6]} 7... Bg4 {[%clk 0:02:53.2]} 8. h3 {[%clk 0:02:40]}
8... Bxf3 {[%clk 0:02:52.3]} 9. exf3 {[%clk 0:02:40.9]} 9... e5 {[%clk
0:02:51.6]} 10. dxe5 {[%clk 0:02:39.4]} 10... dxe5 {[%clk 0:02:50.5]} 11. Bg5
{[%clk 0:02:28.4]} 11... h6 {[%clk 0:02:40.9]} 12. Be3 {[%clk 0:02:26.8]} 12...
Nd4 {[%clk 0:02:39.1]} 13. f4 {[%clk 0:02:25.6]} 13... Nc6 {[%clk 0:02:26.9]}
14. Bxc6 {[%clk 0:02:20.8]} 14... bxc6 {[%clk 0:02:26.3]} 15. Qxd8 {[%clk
0:02:12.7]} 15... Raxd8 {[%clk 0:02:25.3]} 16. fxe5 {[%clk 0:02:13.6]} 16... Nd7
{[%clk 0:02:24.9]} 17. f4 {[%clk 0:02:12.3]} 17... Rfe8 {[%clk 0:02:07.7]} 18.
Bxa7 {[%clk 0:01:59.9]} 18... c5 {[%clk 0:02:05.6]} 19. Ne4 {[%clk 0:01:56.3]}
19... Bf8 {[%clk 0:01:48.7]} 20. Rad1 {[%clk 0:01:49]} 20... f5 {[%clk
0:01:34.1]} 21. Rxd7 {[%clk 0:01:27.9]} 21... fxe4 {[%clk 0:01:32.9]} 22. Rfd1
{[%clk 0:01:27.1]} 22... Rxd7 {[%clk 0:01:29.5]} 23. Rxd7 {[%clk 0:01:28]} 23...
Ra8 {[%clk 0:01:18.5]} 24. Rxc7 {[%clk 0:01:24.4]} 24... e3 {[%clk 0:01:17.9]}
25. Kf1 {[%clk 0:01:18.6]} 25... Rd8 {[%clk 0:01:16.6]} 26. Ke2 {[%clk
0:01:17.4]} 26... Rd2+ {[%clk 0:01:15.3]} 27. Kxe3 {[%clk 0:01:16.7]} 27... Rxb2
{[%clk 0:01:14.8]} 28. Bxc5 {[%clk 0:01:07.8]} 28... Bxc5+ {[%clk 0:01:12.5]}
29. Rxc5 {[%clk 0:01:08.7]} 29... Rxa2 {[%clk 0:01:13]} 30. Rc7 {[%clk
0:00:57.1]} 30... Ra3+ {[%clk 0:01:12.6]} 31. Ke4 {[%clk 0:00:56.4]} 31... Rxg3
{[%clk 0:01:11.8]} 32. e6 {[%clk 0:00:56.4]} 32... Kf8 {[%clk 0:01:10.8]} 33.
Ke5 {[%clk 0:00:53.7]} 33... Rxh3 {[%clk 0:01:09.6]} 34. Kf6 {[%clk 0:00:53.2]}
34... Kg8 {[%clk 0:01:07]} 35. Rc8+ {[%clk 0:00:54.1]} 35... Kh7 {[%clk
0:01:06.8]} 36. e7 {[%clk 0:00:53.6]} 36... Re3 {[%clk 0:01:05.3]} 37. e8=Q
{[%clk 0:00:54.5]} 37... Rxe8 {[%clk 0:01:05.2]} 38. Rxe8 {[%clk 0:00:54.9]}
38... g5 {[%clk 0:01:04.5]} 39. fxg5 {[%clk 0:00:51.2]} 39... hxg5 {[%clk
0:01:04.8]} 40. c5 {[%clk 0:00:50.2]} 40... g4 {[%clk 0:01:04.4]} 41. c6 {[%clk
0:00:51.1]} 41... g3 {[%clk 0:01:04.7]} 42. c7 {[%clk 0:00:52]} 42... g2 {[%clk
0:01:04.7]} 43. c8=Q {[%clk 0:00:51.1]} 43... g1=Q {[%clk 0:01:04.3]} 44. Rh8#
{[%clk 0:00:52]} 1-0